bitfinex-derivatives/quotes_BTCF0:USTF0_20241227
["timestamp","ask_amount","ask_price","bid_price","bid_amount"]
[1735320654319,0.4393,93966.0,93952.0,0.3608]
[1735320654522,0.053331,93947.0,93940.0,0.36848421]
[1735320654910,0.053325,93956.0,93940.0,0.36848421]
[1735320655315,0.053325,93956.0,93950.0,0.3608]
[1735320655514,0.0765,93966.0,93952.0,0.001]
[1735320655718,0.0765,93966.0,93962.0,0.3608]
[1735320656610,0.3608,93976.0,93962.0,0.3608]
[1735320656815,0.053323,93961.0,93952.0,0.001]
[1735320657013,0.053324,93959.0,93952.0,0.001]
[1735320657311,0.053319,93967.0,93951.0,0.3608]
[1735320657516,0.0725,93973.0,93951.0,0.3608]
[1735320657719,0.3608,93968.0,93951.0,0.3608]
[1735320658217,0.3608,93968.0,93959.0,0.3608]
[1735320658727,0.053313,93978.0,93967.0,0.3608]
[1735320659826,0.00159675,93983.0,93967.0,0.414119]
[1735320660021,0.00159675,93983.0,93976.0,0.3608]
[1735320660219,0.00159675,93983.0,93978.0,0.053312]
[1735320660410,0.00159675,93983.0,93967.0,0.36856726]
[1735320660411,0.00159675,93983.0,93977.0,0.3608]
[1735320660616,0.05490675,93983.0,93977.0,0.3608]
[1735320661022,0.00259675,93983.0,93977.0,0.3608]
[1735320662131,0.00259675,93983.0,93977.0,0.36869733]
[1735320663218,0.00259675,93983.0,93978.0,1.5]
[1735320663419,0.1,94000.0,93984.0,0.053309]
[1735320663625,0.1,94000.0,93994.0,0.3608]
[1735320664424,0.1533,94000.0,93994.0,0.3608]
[1735320665023,0.101,94000.0,93994.0,0.7216]
[1735320665330,0.00159635,94013.0,93999.0,0.053301]
[1735320665518,0.00159635,94013.0,94006.0,0.3608]
[1735320667126,0.00159635,94013.0,94012.0,0.053293]
[1735320667321,0.053283,94030.0,94012.0,0.053293]
[1735320667521,0.053283,94030.0,94016.0,0.3608]
[1735320667736,0.053283,94030.0,94027.0,0.3608]
[1735320668414,0.169513,94040.0,94027.0,0.3608]
[1735320668626,0.169513,94040.0,94016.0,0.3608]
[1735320668831,0.053287,94024.0,94016.0,0.3608]
[1735320669021,0.05329,94018.0,94016.0,0.3608]
[1735320669226,0.41409,94017.0,94016.0,0.001]
[1735320669526,0.0533,94001.0,94000.0,0.19070077]
[1735320670023,0.0533,94001.0,93996.0,0.25488761]
[1735320670024,0.3533,94001.0,93996.0,0.25488761]
[1735320670223,0.3533,94001.0,93963.0,0.25420973]
[1735320670224,0.053317,93971.0,93963.0,0.25420973]
[1735320670425,0.4596643,94001.0,93963.0,0.25420973]
[1735320670426,0.3608,93974.0,93963.0,0.25420973]
[1735320670825,0.414121,93964.0,93963.0,0.25420973]
[1735320671325,0.414121,93964.0,93944.0,0.00159673]
[1735320671326,0.3608,93964.0,93944.0,0.00159673]
[1735320671531,0.053325,93957.0,93950.0,0.1633991]
[1735320671723,0.053327,93954.0,93944.0,0.00159673]
[1735320671925,0.053327,93954.0,93948.0,0.3608]
[1735320672130,0.3608,93964.0,93948.0,0.3608]
[1735320672430,0.053326,93954.0,93948.0,0.3608]
[1735320672625,0.3608,93950.0,93944.0,0.00159673]
[1735320673030,0.053331,93946.0,93944.0,0.00159673]
[1735320673229,0.3608,93964.0,93944.0,0.00159673]
[1735320673726,0.053327,93954.0,93944.0,0.00559673]
[1735320674133,0.054327,93954.0,93948.0,0.006]
[1735320674433,0.053329,93950.0,93948.0,0.006]
[1735320674638,0.053324,93959.0,93946.0,0.3608]
[1735320674837,0.053324,93959.0,93944.0,0.01159673]
[1735320675132,0.053324,93959.0,93949.0,0.3608]
[1735320675319,0.3608,93964.0,93949.0,0.3608]
[1735320675829,0.053322,93961.0,93949.0,0.3608]
[1735320676039,0.053324,93958.0,93949.0,0.3608]
[1735320676427,0.053324,93958.0,93948.0,0.008]
[1735320676624,0.3608,93964.0,93948.0,0.008]
[1735320676822,0.3608,93964.0,93949.0,1.5]
[1735320677031,0.3608,93964.0,93949.0,1.8608]
[1735320677632,0.053321,93963.0,93949.0,1.8608]
[1735320678428,0.053321,93963.0,93949.0,1.8658]
[1735320680231,0.3608,93972.0,93949.0,0.3658]
[1735320680432,0.053322,93961.0,93949.0,0.3658]
[1735320680629,0.053319,93967.0,93959.0,0.3608]
[1735320680932,0.053321,93963.0,93959.0,0.3608]
[1735320681140,0.3608,93972.0,93959.0,0.3608]
[1735320681333,0.053318,93969.0,93959.0,0.3608]
[1735320682132,0.002,93963.0,93959.0,0.3608]
[1735320682341,0.053323,93961.0,93959.0,0.3608]
[1735320682731,0.053323,93961.0,93959.0,0.3618]
[1735320683035,0.053323,93961.0,93959.0,0.3628]
[1735320683641,0.3608,93969.0,93959.0,0.3628]
[1735320683834,0.053317,93970.0,93959.0,0.3628]
[1735320684229,0.053317,93970.0,93959.0,0.3618]
[1735320684434,0.053317,93970.0,93967.0,0.3608]
[1735320684629,0.36239674,93983.0,93967.0,0.3608]
[1735320684841,0.053318,93968.0,93967.0,0.3608]
[1735320685142,0.36239674,93983.0,93959.0,0.3628]
[1735320685143,0.053323,93960.0,93959.0,0.3628]
[1735320685534,0.053323,93960.0,93959.0,0.3618]
[1735320686134,0.053323,93960.0,93959.0,0.3608]
[1735320686334,0.053323,93960.0,93959.0,0.3618]
[1735320686531,0.3608,93973.0,93959.0,0.3618]
[1735320686936,0.053323,93961.0,93959.0,0.3618]
[1735320687240,0.053323,93961.0,93959.0,0.002]
[1735320687831,0.36220001,93973.0,93959.0,0.001]
[1735320688035,0.36383674,93983.0,93959.0,0.001]
[1735320688238,0.3608,93974.0,93959.0,0.00625662]
[1735320688433,0.053317,93971.0,93958.0,0.3608]
[1735320688741,0.053318,93970.0,93958.0,0.3608]
[1735320688943,0.053318,93970.0,93969.0,0.3608]
[1735320689239,0.053313,93978.0,93969.0,0.3608]
[1735320689439,0.37005436,93983.0,93969.0,0.3608]
[1735320689639,0.053317,93970.0,93969.0,0.3608]
[1735320690146,0.36869436,93983.0,93969.0,0.3608]
[1735320690549,0.00159674,93983.0,93978.0,0.3608]
[1735320691349,0.00159674,93983.0,93982.0,0.05331]
[1735320691541,0.00459674,93983.0,93982.0,0.05331]
[1735320691850,0.00459674,93983.0,93982.0,0.41411]
[1735320692050,0.3608,94006.0,93990.0,0.053306]
[1735320692251,0.053295,94009.0,93998.0,0.3608]
[1735320692448,0.053295,94009.0,94008.0,0.3608]
[1735320692755,0.053297,94006.0,93998.0,0.3608]
[1735320693144,0.053304,93993.0,93991.0,0.0742]
[1735320693343,0.3608,94007.0,93982.0,0.001]
[1735320693344,0.053301,93998.0,93982.0,0.001]
[1735320693548,0.053308,93987.0,93982.0,0.001]
[1735320694051,0.053304,93993.0,93984.0,0.3608]
[1735320694348,0.053302,93998.0,93992.0,0.3608]
[1735320694556,0.053298,94004.0,93992.0,0.3608]
[1735320694850,0.3608,94010.0,93994.0,0.053303]
[1735320695152,0.053296,94007.0,93994.0,0.053303]
[1735320695553,0.008,93998.0,93994.0,0.053303]
[1735320695753,0.00159629,94028.0,93997.0,0.3608]
[1735320695947,0.053291,94016.0,94009.0,0.3608]
[1735320696351,0.053289,94019.0,94011.0,0.3608]
[1735320696652,0.05329,94018.0,94011.0,0.3608]
[1735320697150,0.05488029,94028.0,94011.0,0.3608]
[1735320697351,0.053295,94009.0,93998.0,1.57616]
[1735320697565,0.053297,94007.0,93998.0,1.5]
[1735320698060,0.053297,94007.0,93998.0,0.00628713]
[1735320698255,0.00259629,94028.0,94004.0,0.3608]
[1735320698553,0.001,94028.0,94012.0,0.3608]
[1735320698748,0.3608,94029.0,94014.0,0.3608]
[1735320699060,0.053284,94029.0,94024.0,0.3608]
[1735320699560,0.00778539,94035.0,94024.0,0.3608]
[1735320699744,0.00778539,94035.0,94032.0,0.053282]
[1735320699947,0.053281,94034.0,94025.0,0.0716]
[1735320700145,0.00778539,94035.0,94025.0,0.0716]
[1735320700146,0.053283,94031.0,94025.0,0.0716]
[1735320700554,0.053289,94020.0,94015.0,0.0733]
[1735320700854,0.3608,94027.0,93984.0,0.3608]
[1735320700855,0.3608,94016.0,93984.0,0.3608]
[1735320701052,0.3608,93998.0,93984.0,0.3608]
[1735320701250,0.3608,93998.0,93973.0,0.3608]
[1735320701447,0.3608,93984.0,93973.0,0.3608]
[1735320701658,0.053313,93978.0,93973.0,0.3608]
[1735320702250,0.3608,93984.0,93973.0,0.3608]
[1735320702762,0.053313,93977.0,93973.0,0.3608]
[1735320703848,0.3608,93984.0,93973.0,0.009]
[1735320704053,0.3608,93984.0,93973.0,0.013]
[1735320704054,0.053315,93974.0,93973.0,0.013]
[1735320704553,0.053315,93974.0,93973.0,0.006]
[1735320704753,0.053315,93974.0,93973.0,0.003]
[1735320705262,0.25210343,93990.0,93973.0,0.7246]
[1735320705452,0.053302,93997.0,93994.0,0.3608]
[1735320705651,0.25210343,94020.0,93995.0,0.3608]
[1735320705855,0.053302,93997.0,93995.0,0.3608]
[1735320706047,0.053302,93997.0,93995.0,1.8608]
[1735320706247,0.053302,93997.0,93995.0,0.3608]
[1735320706452,0.30159631,93996.0,93986.0,0.3608]
[1735320706656,0.053307,93987.0,93986.0,0.3608]
[1735320707055,0.00789255,93996.0,93986.0,0.3608]
[1735320707361,0.06119455,93996.0,93995.0,0.3608]
[1735320707959,0.16758771,93996.0,93995.0,0.3608]
[1735320708267,0.06119455,93996.0,93995.0,0.3608]
[1735320708763,0.36119455,93996.0,93995.0,0.3608]
[1735320708967,0.36119455,93996.0,93986.0,0.3608]
[1735320708968,0.053307,93987.0,93986.0,0.3608]
[1735320709357,0.353307,93987.0,93976.0,0.3608]
[1735320709554,0.053313,93977.0,93976.0,0.3608]
[1735320710760,0.053324,93957.0,93942.0,0.3608]
[1735320710964,0.053331,93945.0,93942.0,0.3608]
[1735320711958,0.053331,93945.0,93942.0,0.3698]
[1735320712750,0.36239714,93964.0,93944.0,0.053332]
[1735320712950,0.053322,93963.0,93959.0,0.3608]
[1735320713259,0.053323,93961.0,93959.0,0.3608]
[1735320713555,0.053328,93951.0,93950.0,0.3608]
[1735320714558,0.3608,93958.0,93950.0,0.003]
[1735320714768,0.053328,93951.0,93932.0,0.3608]
[1735320714952,0.053338,93933.0,93932.0,0.3608]
[1735320716455,0.3608,93947.0,93921.0,1.5]
[1735320716764,0.05334,93931.0,93929.0,0.3608]
[1735320718156,0.05334,93931.0,93929.0,0.3698]
[1735320718561,0.053334,93940.0,93929.0,0.3698]
[1735320718865,0.053334,93940.0,93939.0,0.3608]
[1735320719873,0.053334,93940.0,93939.0,0.3638]
[1735320720260,0.06113289,93940.0,93939.0,0.3638]
[1735320720459,0.06113289,93940.0,93939.0,0.003]
[1735320720663,0.46758438,93940.0,93908.0,0.3608]
[1735320720857,0.053352,93909.0,93908.0,0.3608]
[1735320721867,0.053337,93936.0,93908.0,0.6698]
[1735320722067,0.053332,93944.0,93931.0,0.3608]
[1735320722260,0.3608,93952.0,93932.0,0.0729]
[1735320722564,0.053338,93934.0,93932.0,0.0729]
[1735320722755,0.053332,93945.0,93933.0,0.3608]
[1735320722962,0.053332,93945.0,93941.0,0.3608]
[1735320723263,0.36998127,93952.0,93941.0,0.3608]
[1735320723264,0.053332,93944.0,93941.0,0.3608]
[1735320723752,0.00766127,93952.0,93941.0,0.3608]
[1735320723958,0.3608,93961.0,93941.0,0.3608]
[1735320723959,0.053333,93943.0,93941.0,0.3608]
[1735320727163,0.002,93943.0,93941.0,0.414133]
[1735320727362,0.053328,93951.0,93941.0,0.3608]
[1735320727668,0.3608,93961.0,93950.0,0.3608]
[1735320727969,0.00152,93969.0,93950.0,0.3608]
[1735320728169,0.00758902,93970.0,93958.0,0.3608]
[1735320728358,0.053323,93959.0,93958.0,0.3608]
[1735320729064,0.053316,93972.0,93963.0,0.053321]
[1735320729461,0.053311,93982.0,93969.0,0.053317]
[1735320729774,0.053311,93982.0,93981.0,0.3608]
[1735320730675,0.058311,93982.0,93981.0,0.3608]
[1735320731568,0.005,93982.0,93981.0,0.3608]
[1735320732065,0.053308,93987.0,93981.0,0.3608]
[1735320732367,0.006,93982.0,93981.0,0.3628]
[1735320732574,0.006,93982.0,93981.0,0.4327]
[1735320732769,0.05931,93982.0,93981.0,0.4327]
[1735320732966,0.05931,93982.0,93981.0,0.3628]
[1735320733167,0.05531,93982.0,93981.0,0.3628]
[1735320733371,0.002,93982.0,93960.0,0.16509659]
[1735320733570,0.3608,93968.0,93960.0,0.16509659]
[1735320733774,0.002,93982.0,93960.0,0.16509659]
[1735320733775,0.3608,93976.0,93960.0,0.16509659]
[1735320733975,0.002,93982.0,93949.0,0.3608]
[1735320733976,0.3608,93967.0,93949.0,0.3608]
[1735320734281,0.053328,93951.0,93949.0,0.3608]
[1735320734464,0.05333,93947.0,93945.0,0.00623346]
[1735320734666,0.053331,93946.0,93941.0,0.3623966]
[1735320734867,0.053332,93945.0,93941.0,0.3623966]
[1735320735176,0.053332,93945.0,93941.0,0.0015966]
[1735320735369,0.3608,93948.0,93941.0,0.00780729]
[1735320735564,0.053327,93953.0,93949.0,0.001]
[1735320736270,0.00159687,93965.0,93952.0,0.3608]
[1735320736469,0.3608,93985.0,93968.0,0.053318]
[1735320736774,0.053312,93980.0,93968.0,0.053318]
[1735320737074,0.053313,93977.0,93965.0,0.0741]
[1735320737467,0.053313,93977.0,93965.0,0.127419]
[1735320737871,0.053313,93977.0,93968.0,0.001]
[1735320738476,0.059313,93977.0,93965.0,0.127419]
[1735320738772,0.006,93977.0,93976.0,0.3608]
[1735320738972,0.007,93977.0,93976.0,0.3608]
[1735320739172,0.01,93977.0,93976.0,0.3608]
[1735320739675,0.4156996,93996.0,93982.0,0.05331]
[1735320739873,0.0548996,93996.0,93995.0,0.3608]
[1735320741376,0.3608,94013.0,93995.0,0.66785726]
[1735320741673,0.3608,94033.0,94008.0,0.36079717]
[1735320741877,0.3608,94023.0,94008.0,0.36079717]
[1735320742080,0.3608,94023.0,94009.0,1.5]
[1735320742466,0.053293,94014.0,94008.0,0.36079717]
[1735320742665,0.002,94022.0,94008.0,0.36079717]
[1735320742875,0.053292,94015.0,94008.0,0.36079717]
[1735320743077,0.002,94022.0,94008.0,0.36079717]
[1735320743273,0.05329,94017.0,94008.0,0.36079717]
[1735320743470,0.3608,94025.0,94008.0,0.36079717]
[1735320743669,0.3608,94025.0,94016.0,0.414091]
[1735320744271,0.3608,94025.0,94016.0,0.3608]
[1735320744582,0.36236001,94033.0,94016.0,0.3608]
[1735320744879,0.3608,94033.0,94026.0,0.053285]
[1735320745086,0.3608,94033.0,94017.0,0.1492]
[1735320745376,0.053282,94032.0,94018.0,0.05329]
[1735320745576,0.053282,94032.0,94024.0,0.3608]
[1735320745778,0.05487282,94041.0,94024.0,0.3608]
[1735320745981,0.05487282,94041.0,94040.0,0.3608]
[1735320746582,0.053277,94041.0,94040.0,0.3608]
[1735320747084,0.055277,94041.0,94040.0,0.3608]
[1735320747584,0.002,94041.0,94040.0,0.3608]
[1735320748679,0.05327,94053.0,94040.0,0.3608]
[1735320748880,0.001,94041.0,94040.0,0.52443755]
[1735320749177,0.00159558,94060.0,94040.0,0.3608]
[1735320749379,0.00159558,94060.0,94057.0,0.3608]
[1735320749781,0.1,94100.0,94058.0,1.5]
[1735320749986,0.1,94100.0,94094.0,0.3608]
[1735320750381,0.1,94100.0,94083.0,0.3608]
[1735320750581,0.053248,94092.0,94083.0,0.3608]
[1735320750771,0.1,94100.0,94091.0,0.3608]
[1735320750971,0.1,94100.0,94083.0,0.3608]
[1735320750972,0.053249,94092.0,94083.0,0.3608]
[1735320751176,0.1,94100.0,94083.0,0.3608]
[1735320751177,0.1,94100.0,94091.0,0.3608]
[1735320751471,0.1,94100.0,94099.0,0.3608]
[1735320753680,0.4608,94100.0,94099.0,0.001]
[1735320753878,0.4608,94100.0,94080.0,0.00159453]
[1735320754085,0.053254,94081.0,94080.0,0.00159453]
[1735320754678,0.3608,94082.0,94066.0,0.3608]
[1735320754874,0.053264,94064.0,94057.0,0.3608]
[1735320755873,0.053261,94069.0,94057.0,0.3608]
[1735320756076,0.053261,94069.0,94066.0,0.3608]
[1735320756290,0.053262,94067.0,94066.0,0.3608]
[1735320756784,0.3608,94083.0,94066.0,0.3608]
[1735320756978,0.053258,94074.0,94066.0,0.3608]
[1735320757180,0.05326,94071.0,94066.0,0.3608]
[1735320757580,0.053262,94068.0,94066.0,0.3608]
[1735320759188,0.053261,94070.0,94047.0,0.36239505]
[1735320759383,0.3608,94072.0,94047.0,0.36239505]
[1735320759586,0.1063072,94082.0,94062.0,0.3608]
[1735320759788,0.05326,94071.0,94062.0,0.3608]
[1735320760188,0.05326,94071.0,94070.0,0.3608]
[1735320760685,0.053255,94079.0,94070.0,0.3608]
[1735320760888,0.053257,94076.0,94070.0,0.3608]
[1735320761078,0.00159505,94090.0,94075.0,0.3608]
[1735320761283,0.00159505,94090.0,94086.0,0.3608]
[1735320761284,0.05325,94089.0,94086.0,0.3608]
[1735320761484,0.053251,94087.0,94086.0,0.3608]
[1735320762088,0.00159505,94090.0,94057.0,0.414068]
[1735320762293,0.053265,94063.0,94055.0,0.3608]
[1735320762485,0.3608,94069.0,94047.0,0.00159505]
[1735320762486,0.053271,94053.0,94047.0,0.00159505]
[1735320762688,0.3608,94069.0,94047.0,0.00159505]
[1735320762978,0.3608,94069.0,94054.0,0.3608]
[1735320762979,0.053268,94056.0,94054.0,0.3608]
[1735320763485,0.3608,94069.0,94054.0,0.3608]
[1735320764091,0.053269,94055.0,94054.0,0.3608]
[1735320764285,0.3608,94069.0,94047.0,0.00159505]
[1735320764286,0.053273,94049.0,94047.0,0.00159505]
[1735320764681,0.053286,94025.0,94016.0,0.3608]
[1735320764881,0.3608,94041.0,94024.0,0.3608]
[1735320765183,0.053282,94032.0,94024.0,0.3608]
[1735320765384,0.053284,94029.0,94024.0,0.3608]
[1735320765783,0.053283,94030.0,94024.0,0.3608]
[1735320766596,0.3608,94046.0,94024.0,0.3608]
[1735320766891,0.053286,94026.0,94024.0,0.3608]
[1735320767192,0.053295,94009.0,93996.0,0.053302]
[1735320767487,0.053295,94009.0,93999.0,0.0533]
[1735320767695,0.05329,94018.0,93998.0,0.3608]
[1735320767998,0.05329,94018.0,94007.0,0.3608]
[1735320768186,0.053291,94017.0,94007.0,0.3608]
[1735320768494,0.053291,94017.0,94007.0,0.414096]
[1735320769189,0.053291,94017.0,94015.0,0.3608]
[1735320769693,0.053291,94017.0,94016.0,1.5]
[1735320770090,0.053297,94006.0,94005.0,0.01359565]
[1735320770492,0.053297,94006.0,94005.0,0.00559565]
[1735320770795,0.053297,94006.0,94005.0,0.00159565]
[1735320771212,0.053302,93997.0,93996.0,0.3608]
[1735320772187,0.0762,94016.0,93996.0,0.3608]
[1735320772391,0.0762,94016.0,94004.0,0.3608]
[1735320772392,0.053297,94006.0,94004.0,0.3608]
[1735320773187,0.3608,94029.0,94004.0,0.3608]
[1735320773484,0.05329,94018.0,94007.0,0.053296]
[1735320773687,0.053291,94016.0,94007.0,0.053296]
[1735320773895,0.838,94037.0,94007.0,0.053296]
[1735320773896,0.053279,94038.0,94015.0,0.3608]
[1735320774091,0.3608,94047.0,94037.0,0.3608]
[1735320774287,0.053278,94039.0,94037.0,0.3608]
[1735320775886,0.053278,94039.0,94037.0,0.3618]
[1735320776197,0.053278,94039.0,94037.0,0.3638]
[1735320776694,0.053278,94039.0,94037.0,0.3618]
[1735320776997,0.3608,94055.0,94037.0,0.3638]
[1735320777182,0.053278,94039.0,94037.0,0.003]
[1735320777385,0.053283,94030.0,94029.0,0.3608]
[1735320777585,0.053278,94039.0,94016.0,0.3608]
[1735320777586,0.053289,94020.0,94016.0,0.3608]
[1735320778297,0.3608,94031.0,94016.0,0.3608]
[1735320778503,0.053282,94033.0,94024.0,0.3608]
[1735320778681,0.3608,94043.0,94024.0,0.3608]
[1735320778887,0.053277,94042.0,94024.0,0.3608]
[1735320779081,0.3608,94043.0,94032.0,0.3608]
[1735320779294,0.053279,94038.0,94032.0,0.3608]
[1735320779491,0.053279,94038.0,94037.0,0.001]
[1735320780087,0.053279,94038.0,94032.0,0.3608]
[1735320780282,0.3608,94043.0,94032.0,0.3608]
[1735320780484,0.053276,94042.0,94034.0,0.053281]
[1735320780697,0.001,94038.0,94034.0,0.053281]
[1735320780886,0.001,94038.0,94036.0,0.05328]
[1735320781392,0.00718054,94055.0,94033.0,1.5]
[1735320781393,0.053279,94037.0,94033.0,1.5]
[1735320781592,0.053276,94042.0,94033.0,1.5]
[1735320781902,0.053268,94057.0,94045.0,0.053275]
[1735320782098,0.3608,94062.0,94046.0,0.053274]
[1735320782402,0.0743,94063.0,94030.0,0.25181972]
[1735320782403,0.3608,94052.0,94030.0,0.053283]
[1735320782595,0.25181972,94040.0,94022.0,0.414087]
[1735320782801,0.053287,94024.0,94022.0,0.3608]
[1735320782993,0.053289,94019.0,94018.0,0.00159548]
[1735320784091,0.053289,94019.0,94005.0,0.3608]
[1735320784092,0.053297,94006.0,94005.0,0.3608]
[1735320784494,0.053288,94021.0,94005.0,0.3608]
[1735320784704,0.053288,94021.0,94016.0,0.3608]
[1735320785294,0.3608,94042.0,94016.0,0.3608]
[1735320785295,0.053283,94030.0,94016.0,0.3608]
[1735320785599,0.053285,94027.0,94016.0,0.3608]
[1735320785804,0.053285,94027.0,94018.0,0.053289]
[1735320786001,0.053285,94027.0,94017.0,1.5]
[1735320786190,0.36232,94054.0,94026.0,0.3608]
[1735320786396,0.053279,94038.0,94037.0,0.3608]
[1735320787007,0.3608,94054.0,94037.0,0.3608]
[1735320787194,0.053278,94039.0,94037.0,0.3608]
[1735320787395,0.053278,94039.0,94026.0,0.3628]
[1735320788505,0.053278,94039.0,94038.0,0.3608]
[1735320788893,0.00693746,94053.0,94038.0,0.3608]
[1735320789096,0.05486253,94058.0,94048.0,0.3608]
[1735320789300,0.00159553,94058.0,94048.0,0.3608]
[1735320789505,0.00159553,94058.0,94053.0,0.05327]
[1735320790010,0.001,94053.0,94048.0,0.3608]
[1735320790301,0.001,94053.0,94052.0,0.053271]
[1735320791195,0.002,94058.0,94048.0,0.3618]
[1735320791398,0.1,94100.0,94059.0,0.053266]
[1735320791605,0.00722885,94093.0,94076.0,0.3608]
[1735320792005,0.053252,94085.0,94076.0,0.3608]
[1735320792910,0.0765,94089.0,94076.0,0.3608]
[1735320793503,0.0745,94089.0,94076.0,0.3608]
[1735320793714,0.002,94085.0,94076.0,0.3608]
[1735320795006,0.002,94085.0,94077.0,0.053256]
[1735320795211,0.00792324,94098.0,94076.0,0.281656]
[1735320795408,0.053251,94086.0,94076.0,0.281656]
[1735320795608,0.053259,94073.0,94062.0,0.053264]
[1735320795815,0.053259,94073.0,94063.0,0.053264]
[1735320796104,0.3608,94076.0,94049.0,0.053272]
[1735320796105,0.3608,94067.0,94049.0,0.053272]
[1735320796311,0.3608,94059.0,94049.0,0.053272]
[1735320797002,0.3608,94067.0,94052.0,0.053271]
[1735320797210,0.3608,94067.0,94054.0,0.3608]
[1735320797511,0.3608,94059.0,94054.0,0.053269]
[1735320797713,0.3608,94059.0,94046.0,1.5]
[1735320797898,0.3608,94059.0,94045.0,0.3608]
[1735320798102,0.053264,94065.0,94045.0,0.3608]
[1735320798606,0.053264,94065.0,94054.0,0.005]
[1735320799013,0.3608,94056.0,94054.0,0.005]
[1735320799215,0.053264,94065.0,94052.0,0.009]
[1735320799710,0.3608,94057.0,94052.0,0.009]
[1735320799911,0.053264,94065.0,94052.0,0.009]
[1735320800110,0.053264,94065.0,94051.0,0.414071]
[1735320800111,0.053264,94065.0,94051.0,0.053271]
[1735320800310,0.053264,94065.0,94046.0,1.5]
[1735320800311,0.3608,94067.0,94056.0,0.053268]
[1735320800616,0.3608,94067.0,94059.0,0.053266]
[1735320800911,0.3608,94067.0,94066.0,0.053263]
[1735320801111,0.00159509,94078.0,94066.0,0.053263]
[1735320801414,0.00159509,94078.0,94069.0,0.053261]
[1735320802116,0.00159509,94078.0,94071.0,0.05326]
[1735320803001,0.00159509,94078.0,94077.0,0.053256]
[1735320803204,0.36232,94080.0,94069.0,0.009]
[1735320803410,0.3608,94080.0,94070.0,0.05326]
[1735320803607,0.3608,94080.0,94071.0,0.009]
[1735320804114,0.3608,94072.0,94071.0,0.009]
[1735320804418,0.3608,94072.0,94071.0,0.014]
[1735320804916,0.3608,94072.0,94071.0,0.005]
[1735320805106,0.3608,94072.0,94070.0,0.05326]
[1735320805308,0.3608,94088.0,94072.0,0.053259]
[1735320805509,0.3608,94088.0,94071.0,0.3658]
[1735320805510,0.3608,94088.0,94079.0,0.053255]
[1735320805709,0.3608,94088.0,94084.0,0.053252]
[1735320806616,0.3608,94088.0,94084.0,1.553252]
[1735320806916,0.68650102,94100.0,94084.0,1.553252]
[1735320807121,0.68498102,94100.0,94087.0,0.3608]
[1735320807312,0.52184171,94100.0,94087.0,0.3608]
[1735320807507,0.4608,94100.0,94087.0,0.3608]
[1735320807721,0.4608,94100.0,94097.0,0.053245]
[1735320808019,0.4608,94100.0,94098.0,0.053244]
[1735320808727,0.1,94100.0,94099.0,0.3608]
[1735320810521,0.00766553,94117.0,94099.0,0.3608]
[1735320810719,0.0015944,94119.0,94099.0,0.3608]
[1735320810922,0.0015944,94119.0,94112.0,0.414037]
[1735320811423,0.0015944,94119.0,94114.0,0.053235]
[1735320811623,0.0015944,94119.0,94097.0,0.00793196]
[1735320811624,0.3608,94115.0,94097.0,0.00793196]
[1735320811824,0.16313931,94107.0,94098.0,0.3608]
[1735320812121,0.16313931,94107.0,94090.0,0.3608]
[1735320812122,0.053245,94098.0,94090.0,0.3608]
[1735320812319,0.3608,94104.0,94090.0,0.3608]
[1735320812511,0.053246,94096.0,94090.0,0.3608]
[1735320812709,0.3608,94104.0,94090.0,0.3608]
[1735320812914,0.053242,94103.0,94093.0,0.053247]
[1735320813221,0.053242,94103.0,94090.0,0.3608]
[1735320813222,0.053243,94101.0,94094.0,0.053247]
[1735320814018,0.053243,94101.0,94096.0,0.053246]
[1735320814214,0.3608,94104.0,94102.0,0.053242]
[1735320814817,0.053244,94099.0,94095.0,0.053246]
[1735320815019,0.3608,94104.0,94090.0,0.3608]
[1735320815326,0.053248,94093.0,94090.0,0.414049]
[1735320816243,0.16313931,94100.0,94090.0,0.3608]
[1735320816244,0.21638331,94100.0,94090.0,0.3608]
[1735320816521,0.00785699,94105.0,94103.0,0.053242]
[1735320816733,0.053239,94108.0,94103.0,0.053242]
[1735320817220,0.3608,94115.0,94098.0,0.3608]
[1735320817432,0.3608,94115.0,94109.0,0.053238]
[1735320817617,0.3608,94115.0,94098.0,0.3608]
[1735320818018,0.053234,94117.0,94111.0,0.053237]
[1735320818217,0.0610363,94117.0,94111.0,0.053237]
[1735320818412,0.16313931,94130.0,94116.0,0.053234]
[1735320818612,0.3608,94121.0,94106.0,0.3608]
[1735320818819,0.16313931,94120.0,94098.0,0.3608]
[1735320819017,0.053235,94115.0,94103.0,0.053242]
[1735320819316,0.3608,94113.0,94103.0,0.053242]
[1735320819512,0.3608,94104.0,94098.0,0.00768744]
[1735320819719,0.3608,94104.0,94093.0,0.053247]
[1735320820019,0.053243,94101.0,94094.0,0.053246]
[1735320820224,0.053244,94100.0,94087.0,0.36867027]
[1735320820723,0.7216,94094.0,94080.0,0.0015944]
[1735320821029,0.3608,94081.0,94062.0,0.00794293]
[1735320821230,0.3608,94067.0,94057.0,0.19045484]
[1735320821530,0.053267,94059.0,94057.0,0.19045484]
[1735320821825,0.414062,94067.0,94057.0,0.24372284]
[1735320822030,0.053262,94067.0,94057.0,0.053268]
[1735320823124,0.053264,94064.0,94057.0,0.008]
[1735320823325,0.3608,94058.0,94057.0,0.008]
[1735320824121,0.3608,94058.0,94057.0,0.012]
[1735320824320,0.415581,94069.0,94058.0,0.053267]
[1735320824515,0.415581,94069.0,94057.0,0.3728]
[1735320824516,0.3608,94069.0,94064.0,0.053263]
[1735320824723,0.053262,94068.0,94057.0,0.065268]